fUST/lending_fUST_20250821
["ID","MTS","AMOUNT","RATE_DAILY","PERIOD"]
[380428053,1755757850666,-480.0,0.00022191,3]
[380428054,1755757850675,-480.0,0.00022191,3]
[380428055,1755757850685,-480.0,0.00022191,3]
[380428056,1755757850694,-480.0,0.00022191,3]
[380428057,1755757850703,-362.90346042,0.00022191,3]
[380428058,1755757850712,-480.0,0.00022191,3]
[380428059,1755757850722,-480.0,0.00022191,3]
[380428060,1755757850731,-480.0,0.00022191,3]
[380428061,1755757850740,-480.0,0.00022191,3]
[380428062,1755757850749,-480.0,0.00022191,3]
[380428063,1755757850758,-480.0,0.00022191,3]
[380428064,1755757850767,-480.0,0.00022191,3]
[380428065,1755757850777,-184.92992818,0.00022191,3]
[380428066,1755757850786,-999.59,0.00022191,3]
[380428067,1755757850795,-885.85,0.00022191,3]
[380428068,1755757850804,-844.19,0.00022191,3]
[380428069,1755757850813,-700.31,0.00022191,3]
[380428070,1755757850823,-543.02060983,0.00022191,3]
[380428071,1755757850832,-914.94,0.00022191,3]
[380428072,1755757850841,-936.86,0.00022191,3]
[380428073,1755757850852,-480.0,0.00022191,3]
[380428074,1755757850863,-528.05,0.00022191,3]
[380428075,1755757850872,-480.0,0.00022191,3]
[380428076,1755757850881,-451.35779184,0.00022191,3]
[380428077,1755757850890,-480.0,0.00022191,3]
[380428078,1755757850901,-1909.85,0.00022191,3]
[380428079,1755757850911,-729.86,0.00022191,3]
[380428080,1755757850920,-368.59819994,0.00022191,3]
[380428081,1755757850931,-480.0,0.00022191,3]
[380428082,1755757850941,-480.0,0.00022191,3]
[380428083,1755757850950,-467.16464256,0.00022191,3]
[380428084,1755757850959,-480.0,0.00022191,3]
[380428085,1755757850969,-480.0,0.00022191,3]
[380428086,1755757850978,-480.0,0.00022191,3]
[380428087,1755757850987,-690.2,0.00022191,3]
[380428088,1755757850996,-151.0,0.00022191,7]
[380428089,1755757851005,-151.0,0.00022191,7]
[380428090,1755757851015,-480.0,0.00022191,3]
[380428091,1755757851024,-480.0,0.00022191,3]
[380428092,1755757851033,-480.0,0.00022191,3]
[380428093,1755757851042,-480.0,0.00022191,3]
[380428094,1755757851051,-151.0,0.00022191,7]
[380428095,1755757851060,-480.0,0.00022191,3]
[380428096,1755757851069,-480.0,0.00022191,3]
[380428097,1755757851079,-151.0,0.00022191,7]
[380428098,1755757851088,-480.0,0.00022191,3]
[380428099,1755757851097,-151.0,0.00022191,7]
[380428100,1755757851106,-480.0,0.00022191,3]
[380428101,1755757851116,-480.0,0.00022191,3]
[380428102,1755757851125,-1063.94,0.00022191,3]
[380428103,1755757851134,-480.0,0.00022191,3]
[380428104,1755757851143,-480.0,0.00022191,3]
[380428105,1755757851153,-480.0,0.00022191,3]
[380428106,1755757851164,-480.0,0.00022191,3]
[380428107,1755757851173,-480.0,0.00022191,3]
[380428108,1755757851182,-480.0,0.00022191,3]
[380428109,1755757851191,-463.35499212,0.00022191,3]
[380428110,1755757851200,-480.0,0.00022191,3]
[380428111,1755757851209,-480.0,0.00022191,3]
[380428112,1755757851218,-480.0,0.00022191,3]
[380428113,1755757851227,-480.0,0.00022191,3]
[380428114,1755757851237,-480.0,0.00022191,3]
[380428115,1755757851246,-480.0,0.00022191,3]
[380428116,1755757851255,-394.88196855,0.00022191,3]
[380428117,1755757851263,-480.0,0.00022191,3]
[380428118,1755757851273,-480.0,0.00022191,3]
[380428119,1755757851282,-480.0,0.00022191,3]
[380428120,1755757851291,-2976.91,0.00022191,3]
[380428121,1755757851300,-480.0,0.00022191,3]
[380428122,1755757851309,-480.0,0.00022191,3]
[380428123,1755757851318,-151.0,0.00022191,7]
[380428124,1755757851328,-1227.61,0.00022191,3]
[380428125,1755757851338,-480.0,0.00022191,3]
[380428126,1755757851348,-480.0,0.00022191,3]
[380428127,1755757851357,-480.0,0.00022191,3]
[380428128,1755757851367,-480.0,0.00022191,3]
[380428129,1755757851375,-480.0,0.00022191,3]
[380428130,1755757851385,-964.27,0.00022191,3]
[380428131,1755757851394,-480.0,0.00022191,3]
[380428132,1755757851405,-480.0,0.00022191,3]
[380428133,1755757851415,-480.0,0.00022191,3]
[380428134,1755757851424,-480.0,0.00022191,3]
[380428135,1755757851434,-480.0,0.00022191,3]
[380428136,1755757851443,-151.0,0.00022191,7]
[380428137,1755757851453,-2407.41,0.00022191,3]
[380428138,1755757851462,-480.0,0.00022191,3]
[380428139,1755757851471,-480.0,0.00022191,3]
[380428140,1755757851480,-480.0,0.00022191,3]
[380428141,1755757851490,-480.0,0.00022191,3]
[380428142,1755757851499,-480.0,0.00022191,3]
[380428143,1755757851510,-480.0,0.00022191,3]
[380428144,1755757851520,-480.0,0.00022191,3]
[380428145,1755757851529,-480.0,0.00022191,3]
[380428146,1755757851540,-480.0,0.00022191,3]
[380428147,1755757851549,-480.0,0.00022191,3]
[380428148,1755757851558,-480.0,0.00022191,3]
[380428149,1755757851568,-429.74076571,0.00022191,3]
[380428150,1755757851577,-480.0,0.00022191,3]
[380428151,1755757851587,-480.0,0.00022191,3]
[380428152,1755757851596,-480.0,0.00022191,3]
[380428153,1755757851606,-480.0,0.00022191,3]
[380428154,1755757851616,-480.0,0.00022191,3]
[380428155,1755757851626,-480.0,0.00022191,3]
[380428156,1755757851635,-480.0,0.00022191,3]
[380428157,1755757851644,-480.0,0.00022191,3]
[380428158,1755757851654,-480.0,0.00022191,3]
[380428159,1755757851663,-480.0,0.00022191,3]
[380428160,1755757851672,-480.0,0.00022191,3]
[380428161,1755757851682,-480.0,0.00022191,3]
[380428162,1755757851691,-522.84,0.00022191,3]
[380428163,1755757851700,-4664.25,0.00022191,3]
[380428164,1755757851709,-480.0,0.00022191,3]
[380428165,1755757851720,-1657.39,0.00022191,3]
[380428166,1755757851729,-480.0,0.00022191,3]
[380428167,1755757851738,-480.0,0.00022191,3]
[380428168,1755757851747,-480.0,0.00022191,3]
[380428169,1755757851757,-4638.96,0.00022191,3]
[380428170,1755757851766,-480.0,0.00022191,3]
[380428171,1755757851775,-554.31,0.00022191,3]
[380428172,1755757851784,-708.34,0.00022191,3]
[380428173,1755757851794,-480.0,0.00022191,3]
[380428174,1755757851803,-448.10304059,0.00022191,3]
[380428175,1755757851812,-480.0,0.00022191,3]
[380428176,1755757851821,-2934.5,0.00022191,3]
[380428177,1755757851830,-480.0,0.00022191,3]
[380428178,1755757851839,-480.0,0.00022191,3]
[380428179,1755757851851,-809.77,0.00022191,3]
[380428180,1755757851860,-480.0,0.00022191,3]
[380428181,1755757851869,-480.0,0.00022191,3]
[380428182,1755757851878,-674.3,0.00022191,3]
[380428183,1755757851887,-480.0,0.00022191,3]
[380428184,1755757851897,-780.36,0.00022191,3]
[380428185,1755757851906,-480.0,0.00022191,3]
[380428186,1755757851916,-384.04175063,0.00022191,3]
[380428187,1755757851927,-3843.67,0.00022191,3]
[380428188,1755757851937,-480.0,0.00022191,3]
[380428189,1755757851946,-480.0,0.00022191,3]
[380428190,1755757851955,-693.03,0.00022191,3]
[380428191,1755757851964,-480.0,0.00022191,3]
[380428192,1755757851974,-480.0,0.00022191,3]
[380428193,1755757851983,-480.0,0.00022191,3]
[380428194,1755757851993,-1644.74,0.00022191,3]
[380428195,1755757852002,-480.0,0.00022191,3]
[380428196,1755757852012,-601.33,0.00022191,3]
[380428197,1755757852022,-2521.6,0.00022191,3]
[380428198,1755757852031,-480.0,0.00022191,3]
[380428199,1755757852043,-480.0,0.00022191,3]
[380428200,1755757852063,-480.0,0.00022191,3]
[380428201,1755757852076,-480.0,0.00022191,3]
[380428202,1755757852086,-603.99,0.00022191,3]
[380428203,1755757852095,-480.0,0.00022191,3]
[380428204,1755757852104,-480.0,0.00022191,3]
[380428205,1755757852113,-480.0,0.00022191,3]
[380428206,1755757852122,-153.080213,0.00022191,7]
[380428207,1755757852131,-480.0,0.00022191,3]
[380428208,1755757852141,-1419.7,0.00022191,3]
[380428209,1755757852150,-956.22,0.00022191,3]
[380428210,1755757852161,-480.0,0.00022191,3]
[380428211,1755757852171,-153.080213,0.00022191,7]
[380428212,1755757852180,-1347.61,0.00022191,3]
[380428213,1755757852189,-480.0,0.00022191,3]
[380428214,1755757852199,-153.080213,0.00022191,7]
[380428215,1755757852208,-480.0,0.00022191,3]
[380428216,1755757852217,-1583.83,0.00022191,3]
[380428217,1755757852227,-153.080215,0.00022191,7]
[380428218,1755757852237,-480.0,0.00022191,3]
[380428219,1755757852246,-1181.14,0.00022191,3]
[380428220,1755757852255,-607.58,0.00022191,3]
[380428221,1755757852264,-58.27706376,0.00022191,3]
[380428222,1755757852283,-421.72293624,0.00022191,3]
[380428223,1755757852293,-480.0,0.00022191,3]
[380428224,1755757852302,-480.0,0.00022191,3]
[380428225,1755757852310,-4455.92,0.00022191,3]
[380428226,1755757852319,-480.0,0.00022191,2]
[380428227,1755757852328,-480.0,0.00022191,3]
[380428228,1755757852337,-480.0,0.00022191,3]
[380428229,1755757852346,-451.98009044,0.00022191,3]
[380428230,1755757852356,-480.0,0.00022191,3]
[380428231,1755757852364,-480.0,0.00022191,3]
[380428232,1755757852374,-442.70117872,0.00022191,3]
[380428233,1755757852383,-672.56,0.00022191,3]
[380428234,1755757852392,-480.0,0.00022191,3]
[380428235,1755757852401,-480.0,0.00022191,3]
[380428236,1755757852412,-1930.11,0.00022191,3]
[380428237,1755757852422,-1214.68,0.00022191,3]
[380428238,1755757852431,-480.0,0.00022191,3]
[380428239,1755757852440,-480.0,0.00022191,3]
[380428240,1755757852450,-1341.9,0.00022191,3]
[380428241,1755757852459,-480.0,0.00022191,3]
[380428242,1755757852468,-1420.01,0.00022191,3]
[380428243,1755757852477,-480.0,0.00022191,3]
[380428244,1755757852488,-480.0,0.00022191,3]
[380428245,1755757852497,-850.58,0.00022191,3]
[380428246,1755757852506,-480.0,0.00022191,3]
[380428247,1755757852515,-736.07,0.00022191,3]
[380428248,1755757852525,-1886.47,0.00022191,3]
[380428249,1755757852535,-480.0,0.00022191,3]
[380428250,1755757852544,-480.0,0.00022191,3]
[380428251,1755757852554,-558.28,0.00022191,3]
[380428252,1755757852563,-480.0,0.00022191,3]
[380428253,1755757852573,-934.37,0.00022191,3]
[380428254,1755757852585,-480.0,0.00022191,3]
[380428255,1755757852595,-510.4,0.00022191,3]
[380428256,1755757852606,-480.0,0.00022191,3]
[380428257,1755757852615,-1219.24,0.00022191,3]
[380428258,1755757852626,-480.0,0.00022191,3]
[380428259,1755757852635,-4091.09,0.00022191,3]
[380428260,1755757852645,-480.0,0.00022191,3]
[380428261,1755757852655,-954.42,0.00022191,3]
[380428262,1755757852666,-430.94726054,0.00022191,3]
[380428263,1755757852675,-151.0,0.00022191,7]
[380428264,1755757852685,-151.0,0.00022191,7]
[380428265,1755757852695,-480.0,0.00022191,3]
[380428266,1755757852704,-568.48,0.00022191,3]
[380428267,1755757852716,-480.0,0.00022191,3]
[380428268,1755757852726,-480.0,0.00022191,3]
[380428269,1755757852737,-165.73401994,0.00022191,3]
[380428270,1755757853201,-151.0,0.0002148,2]
[380428271,1755757853211,-151.0,0.00021917,2]
[380428272,1755757853220,-151.0,0.00021917,2]
[380428273,1755757853230,-480.0,0.00021917,3]
[380428274,1755757853239,-480.0,0.00021917,3]
[380428275,1755757853249,-151.0,0.00022,7]
[380428276,1755757853258,-46.36689294,0.00022191,3]
[380428277,1755757853281,-480.0,0.00021917,3]
[380428278,1755757853290,-1223.66908712,0.00022191,3]
[380428279,1755757853299,-254.48115715,0.00022191,3]
[380428280,1755757853311,-5131.62884285,0.00022191,3]
[380428281,1755757853321,-480.0,0.00022191,3]
[380428282,1755757853330,-578.01,0.00022191,3]
[380428283,1755757853340,-480.0,0.00022191,3]
[380428284,1755757853349,-480.0,0.00022191,3]
[380428285,1755757853358,-480.0,0.00022191,3]
[380428286,1755757853368,-480.0,0.00022191,3]
[380428287,1755757853377,-480.0,0.00022191,3]
[380428288,1755757853387,-480.0,0.00022191,3]
[380428289,1755757853396,-480.0,0.00022191,3]
[380428290,1755757853406,-170.429107,0.00022191,7]
[380428291,1755757853416,-2703.89,0.00022191,3]
[380428292,1755757853426,-170.429107,0.00022191,7]
[380428293,1755757853435,-6293.52,0.00022191,3]
[380428294,1755757853445,-480.0,0.00022191,3]
[380428295,1755757853455,-170.429107,0.00022191,7]
[380428296,1755757853464,-480.0,0.00022191,3]
[380428297,1755757853474,-869.1,0.00022191,3]
[380428298,1755757853483,-170.429103,0.00022191,7]
[380428299,1755757853493,-480.0,0.00022191,3]
[380428300,1755757853502,-2542.03,0.00022191,3]
[380428301,1755757853512,-916.68,0.00022191,3]
[380428302,1755757853522,-1371.44,0.00022191,3]
[380428303,1755757853532,-912.7,0.00022191,3]
[380428304,1755757853541,-480.0,0.00022191,3]
[380428305,1755757853551,-480.0,0.00022191,3]
[380428306,1755757853560,-514.34,0.00022191,3]
[380428307,1755757853570,-480.0,0.00022191,3]
[380428308,1755757853579,-480.0,0.00022191,3]
[380428309,1755757853588,-704.11,0.00022191,3]
[380428310,1755757853597,-480.0,0.00022191,3]
[380428311,1755757853607,-852.29,0.00022191,3]
[380428312,1755757853616,-480.0,0.00022191,3]
[380428313,1755757853626,-649.02,0.00022191,3]
[380428314,1755757853635,-480.0,0.00022191,3]
[380428315,1755757853645,-480.0,0.00022191,2]
[380428316,1755757853654,-604.48,0.00022191,3]
[380428317,1755757853664,-480.0,0.00022191,3]
[380428318,1755757853673,-480.0,0.00022191,3]
[380428319,1755757853683,-945.48,0.00022191,3]
[380428320,1755757853694,-480.0,0.00022191,3]
[380428321,1755757853705,-2034.88,0.00022191,3]
[380428322,1755757853715,-1928.56,0.00022191,3]
[380428323,1755757853726,-440.6740048,0.00022191,3]
[380428324,1755757853736,-480.0,0.00022191,3]
[380428325,1755757853745,-384.67132836,0.00022191,3]
[380428326,1755757853754,-480.0,0.00022191,3]
[380428327,1755757853764,-480.0,0.00022191,3]
[380428328,1755757853773,-480.0,0.00022191,3]
[380428329,1755757853782,-480.0,0.00022191,3]
[380428330,1755757853791,-480.0,0.00022191,3]
[380428331,1755757853801,-480.0,0.00022191,3]
[380428332,1755757853810,-480.0,0.00022191,3]
[380428333,1755757853820,-480.0,0.00022191,3]
[380428334,1755757853829,-480.0,0.00022191,3]
[380428335,1755757853838,-480.0,0.00022191,3]
[380428336,1755757853847,-151.0,0.00022191,7]
[380428337,1755757853861,-480.0,0.00022191,3]
[380428338,1755757853870,-480.0,0.00022191,3]
[380428339,1755757853880,-565.37,0.00022191,3]
[380428340,1755757853890,-480.0,0.00022191,3]
[380428341,1755757853901,-480.0,0.00022191,3]
[380428342,1755757853911,-480.0,0.00022191,3]
[380428343,1755757853920,-591.86,0.00022191,3]
[380428344,1755757853932,-480.0,0.00022191,3]
[380428345,1755757853941,-480.0,0.00022191,3]
[380428346,1755757853950,-2420.94,0.00022191,3]
[380428347,1755757853961,-151.0,0.00022191,7]
[380428348,1755757853970,-480.0,0.00022191,3]
[380428349,1755757853980,-578.64,0.00022191,3]
[380428350,1755757853989,-480.0,0.00022191,3]
[380428351,1755757853999,-151.0,0.00022191,7]
[380428352,1755757854009,-480.0,0.00022191,3]
[380428353,1755757854019,-500.0,0.00022201,2]
[380428354,1755757854028,-2534.0149584,0.00022278,2]
[380428355,1755757854038,-988.53446501,0.00022322,2]
[380428356,1755757854047,-1142.48702794,0.00022368,2]
[380428357,1755757854056,-800.0,0.00022434,2]
[380428358,1755757854067,-352.13272056,0.00022465,3]
[380428359,1755757854077,-480.0,0.00022465,3]
[380428360,1755757854087,-480.0,0.00022465,3]
[380428361,1755757854097,-480.0,0.00022465,3]
[380428362,1755757854106,-480.0,0.00022465,3]
[380428363,1755757854115,-480.0,0.00022465,3]
[380428364,1755757854125,-480.0,0.00022465,3]
[380428365,1755757854134,-480.0,0.00022465,3]
[380428366,1755757854144,-480.0,0.00022465,3]
[380428367,1755757854153,-712.86,0.00022465,3]
[380428368,1755757854163,-480.0,0.00022465,3]
[380428369,1755757854173,-480.0,0.00022465,3]
[380428370,1755757854182,-480.0,0.00022465,3]
[380428371,1755757854191,-480.0,0.00022465,3]
[380428372,1755757854358,-480.0,0.00022465,3]
[380428373,1755757854368,-487.84,0.00022465,3]
[380428374,1755757854378,-1038.72,0.00022465,3]
[380428375,1755757854387,-480.0,0.00022465,3]
[380428376,1755757854397,-480.0,0.00022465,3]
[380428377,1755757854407,-480.0,0.00022465,3]
[380428378,1755757854417,-480.0,0.00022465,3]
[380428379,1755757854426,-480.0,0.00022465,3]
[380428380,1755757854436,-480.0,0.00022465,3]
[380428381,1755757854446,-480.0,0.00022465,3]
[380428382,1755757854456,-480.0,0.00022465,3]
[380428383,1755757854465,-351.03770864,0.00022465,3]
[380428384,1755757854477,-498.48,0.00022465,3]
[380428385,1755757854487,-480.0,0.00022465,3]
[380428386,1755757854496,-480.0,0.00022465,3]
[380428387,1755757854506,-480.0,0.00022465,3]
[380428388,1755757854516,-480.0,0.00022465,3]
[380428389,1755757854526,-638.22,0.00022465,3]
[380428390,1755757854536,-480.0,0.00022465,3]
[380428391,1755757854546,-480.0,0.00022465,3]
[380428392,1755757854555,-480.0,0.00022465,3]
[380428393,1755757854564,-578.81,0.00022465,3]
[380428394,1755757854574,-480.0,0.00022465,3]
[380428395,1755757854583,-480.0,0.00022465,3]
[380428396,1755757854593,-788.6,0.00022465,3]
[380428397,1755757854602,-480.0,0.00022465,3]
[380428398,1755757854612,-480.0,0.00022465,3]
[380428399,1755757854621,-529.86,0.00022465,3]
[380428400,1755757854631,-480.0,0.00022465,3]
[380428401,1755757854641,-403.41701561,0.00022465,3]
[380428402,1755757854650,-480.0,0.00022465,3]
[380428403,1755757854661,-480.0,0.00022465,3]
[380428404,1755757854671,-672.84,0.00022465,3]
[380428405,1755757854680,-480.0,0.00022465,3]
[380428406,1755757854690,-480.0,0.00022465,3]
[380428407,1755757854700,-480.0,0.00022465,3]
[380428408,1755757854710,-691.89,0.00022465,3]
[380428409,1755757854719,-546.67,0.00022465,3]
[380428410,1755757854729,-480.0,0.00022465,3]
[380428411,1755757854739,-1160.26,0.00022465,3]
[380428412,1755757854748,-480.0,0.00022465,3]
[380428413,1755757854758,-480.0,0.00022465,3]
[380428414,1755757854768,-480.0,0.00022465,3]
[380428415,1755757854778,-480.0,0.00022465,3]
[380428416,1755757854787,-437.10381537,0.00022465,3]
[380428417,1755757854797,-480.0,0.00022465,2]
[380428418,1755757854807,-480.0,0.00022465,3]
[380428419,1755757854817,-444.55195144,0.00022465,3]
[380428420,1755757854827,-480.0,0.00022465,3]
[380428421,1755757854837,-480.0,0.00022465,3]
[380428422,1755757854847,-480.0,0.00022465,3]
[380428423,1755757854859,-480.0,0.00022465,3]
[380428424,1755757854868,-480.0,0.00022465,3]
[380428425,1755757854878,-480.0,0.00022465,3]
[380428426,1755757854888,-480.0,0.00022465,3]
[380428427,1755757854898,-480.0,0.00022465,3]
[380428428,1755757854908,-480.0,0.00022465,3]
[380428429,1755757854918,-1401.61,0.00022465,3]
[380428430,1755757854929,-480.0,0.00022465,3]
[380428431,1755757854939,-480.0,0.00022465,3]
[380428432,1755757854949,-480.0,0.00022465,3]
[380428433,1755757854958,-480.0,0.00022465,3]
[380428434,1755757854968,-480.0,0.00022465,3]
[380428435,1755757854978,-689.21,0.00022465,3]
[380428436,1755757854988,-496.73444369,0.00022465,3]
[380428437,1755757854998,-480.0,0.00022465,3]
[380428438,1755757855007,-480.0,0.00022465,3]
[380428439,1755757855017,-480.0,0.00022465,3]
[380428440,1755757855026,-480.0,0.00022465,3]
[380428441,1755757855036,-658.85,0.00022465,3]
[380428442,1755757855045,-480.0,0.00022465,3]
[380428443,1755757855054,-759.09,0.00022465,3]
[380428444,1755757855063,-480.0,0.00022465,3]
[380428445,1755757855072,-480.0,0.00022465,3]
[380428446,1755757855082,-480.0,0.00022465,3]
[380428447,1755757855091,-490.58,0.00022465,3]
[380428448,1755757855100,-1930.76,0.00022465,3]
[380428449,1755757855109,-480.0,0.00022465,3]
[380428450,1755757855119,-432.51565562,0.00022465,3]
[380428451,1755757855128,-480.0,0.00022465,3]
[380428452,1755757855137,-480.0,0.00022465,3]
[380428453,1755757855147,-480.0,0.00022465,3]
[380428454,1755757855157,-480.0,0.00022465,3]
[380428455,1755757855166,-522.66,0.00022465,3]
[380428456,1755757855177,-800.36,0.00022465,3]
[380428457,1755757855186,-480.0,0.00022465,3]
[380428458,1755757855196,-480.0,0.00022465,3]
[380428459,1755757855205,-718.05,0.00022465,3]
[380428460,1755757855215,-446.98922459,0.00022465,3]
[380428461,1755757855224,-1203.85,0.00022465,3]
[380428462,1755757855234,-480.0,0.00022465,3]
[380428463,1755757855244,-341.60212745,0.00022465,3]
[380428464,1755757855254,-480.0,0.00022465,3]
[380428465,1755757855263,-480.0,0.00022465,3]
[380428466,1755757855273,-480.0,0.00022465,3]
[380428467,1755757855283,-363.436215,0.00022465,3]
[380428468,1755757855292,-480.0,0.00022465,3]
[380428469,1755757855302,-480.0,0.00022465,3]
[380428470,1755757855311,-480.0,0.00022465,3]
[380428471,1755757855320,-885.85,0.00022465,3]
[380428472,1755757855330,-999.59,0.00022465,3]
[380428473,1755757855340,-844.19,0.00022465,3]
[380428474,1755757855349,-700.31,0.00022465,3]
[380428475,1755757855359,-914.94,0.00022465,3]
[380428476,1755757855369,-936.86,0.00022465,3]
[380428477,1755757855379,-480.0,0.00022465,3]
[380428478,1755757855388,-528.05,0.00022465,3]
[380428479,1755757855398,-480.0,0.00022465,3]
[380428480,1755757855407,-1909.85,0.00022465,3]
[380428481,1755757855417,-729.86,0.00022465,3]
[380428482,1755757855426,-570.60020465,0.00022465,3]
[380428483,1755757855436,-480.0,0.00022465,3]
[380428484,1755757855445,-480.0,0.00022465,3]
[380428485,1755757855456,-445.05480427,0.00022465,3]
[380428486,1755757855465,-690.2,0.00022465,3]
[380428487,1755757855474,-480.0,0.00022465,3]
[380428488,1755757855483,-480.0,0.00022465,3]
[380428489,1755757855493,-480.0,0.00022465,3]
[380428490,1755757855502,-480.0,0.00022465,3]
[380428491,1755757855511,-460.0,0.00022465,3]
[380428492,1755757855520,-480.0,0.00022465,3]
[380428493,1755757855530,-1063.94,0.00022465,3]
[380428494,1755757855539,-480.0,0.00022465,3]
[380428495,1755757855549,-480.0,0.00022465,3]
[380428496,1755757855558,-480.0,0.00022465,3]
[380428497,1755757855568,-463.62824628,0.00022465,3]
[380428498,1755757855578,-422.83345265,0.00022465,3]
[380428499,1755757855587,-480.0,0.00022465,3]
[380428500,1755757855597,-480.0,0.00022465,3]
[380428501,1755757855606,-480.0,0.00022465,3]
[380428502,1755757855616,-480.0,0.00022465,3]
[380428503,1755757855626,-480.0,0.00022465,3]
[380428504,1755757855635,-480.0,0.00022465,3]
[380428505,1755757855645,-480.0,0.00022465,3]
[380428506,1755757855654,-480.0,0.00022465,3]
[380428507,1755757855664,-480.0,0.00022465,3]
[380428508,1755757855674,-480.0,0.00022465,3]
[380428509,1755757855684,-480.0,0.00022465,3]
[380428510,1755757855693,-480.0,0.00022465,3]
[380428511,1755757855703,-964.27,0.00022465,3]
[380428512,1755757855712,-480.0,0.00022465,3]
[380428513,1755757855722,-480.0,0.00022465,3]
[380428514,1755757855731,-480.0,0.00022465,3]
[380428515,1755757855741,-2407.41,0.00022465,3]
[380428516,1755757855750,-480.0,0.00022465,3]
[380428517,1755757855760,-366.78854918,0.00022465,3]
[380428518,1755757855770,-480.0,0.00022465,3]
[380428519,1755757855779,-480.0,0.00022465,3]
[380428520,1755757855789,-167.18164905,0.00022465,3]
[380428521,1755757855798,-480.0,0.00022465,3]
[380428522,1755757855808,-480.0,0.00022465,3]
[380428523,1755757855817,-480.0,0.00022465,3]
[380428524,1755757855826,-480.0,0.00022465,3]
[380428525,1755757855836,-480.0,0.00022465,3]
[380428526,1755757855846,-480.0,0.00022465,3]
[380428527,1755757855859,-480.0,0.00022465,3]
[380428528,1755757855869,-480.0,0.00022465,3]
[380428529,1755757855878,-480.0,0.00022465,3]
[380428530,1755757855887,-480.0,0.00022465,3]
[380428531,1755757855898,-480.0,0.00022465,3]
[380428532,1755757855908,-480.0,0.00022465,3]
[380428533,1755757855918,-480.0,0.00022465,3]
[380428534,1755757855928,-480.0,0.00022465,3]
[380428535,1755757855938,-480.0,0.00022465,3]
[380428536,1755757855947,-480.0,0.00022465,3]
[380428537,1755757855957,-522.84,0.00022465,3]
[380428538,1755757855966,-4664.25,0.00022465,3]
[380428539,1755757855975,-480.0,0.00022465,3]
[380428540,1755757855985,-1657.39,0.00022465,3]
[380428541,1755757855994,-480.0,0.00022465,3]
[380428542,1755757856004,-480.0,0.00022465,3]
[380428543,1755757856014,-480.0,0.00022465,3]
[380428544,1755757856025,-4638.96,0.00022465,3]
[380428545,1755757856035,-554.31,0.00022465,3]
[380428546,1755757856045,-708.34,0.00022465,3]
[380428547,1755757856055,-480.0,0.00022465,3]
[380428548,1755757856065,-480.0,0.00022465,3]
[380428549,1755757856075,-2934.5,0.00022465,3]
[380428550,1755757856085,-809.77,0.00022465,3]
[380428551,1755757856095,-480.0,0.00022465,3]
[380428552,1755757856109,-480.0,0.00022465,3]